[Event "Early-Titled-Tuesday-Blitz-February-27-2024"]
[Site "Chess.com"]
[Date "2024.02.27"]
[Round "5"]
[White "Oleksandr_Bortnyk"]
[Black "yosephtaher"]
[Result "1-0"]
[WhiteElo "3067"]
[BlackElo "2929"]
[TimeControl "180+1"]
[EndTime "8:54:52 PST"]
[Termination "Oleksandr_Bortnyk won on time"]

1. e4 {[%clk 0:02:59.9]} 1... c6 {[%clk 0:02:55.3]} 2. c4 {[%clk 0:02:55.1]}
2... c5 {[%clk 0:02:42.8]} 3. Nf3 {[%clk 0:02:40.4]} 3... Nc6 {[%clk 0:02:42.2]}
4. d4 {[%clk 0:02:40.8]} 4... cxd4 {[%clk 0:02:42.8]} 5. Nxd4 {[%clk 0:02:41.6]}
5... Nf6 {[%clk 0:02:38.2]} 6. Nc3 {[%clk 0:02:37.4]} 6... g6 {[%clk 0:02:38.7]}
7. Nxc6 {[%clk 0:02:33.3]} 7... bxc6 {[%clk 0:02:39.6]} 8. e5 {[%clk 0:02:33.7]}
8... Ng8 {[%clk 0:02:35.6]} 9. Bf4 {[%clk 0:02:26.6]} 9... Bg7 {[%clk
0:02:33.4]} 10. Bd3 {[%clk 0:02:26.4]} 10... f6 {[%clk 0:02:29]} 11. Qe2 {[%clk
0:02:25.1]} 11... Qa5 {[%clk 0:02:26.2]} 12. exf6 {[%clk 0:02:01.5]} 12... Nxf6
{[%clk 0:02:27.1]} 13. Bd6 {[%clk 0:02:00.8]} 13... Qd8 {[%clk 0:02:10.4]} 14.
O-O {[%clk 0:01:57.8]} 14... Kf7 {[%clk 0:02:09.8]} 15. Bg3 {[%clk 0:01:45.8]}
15... Re8 {[%clk 0:02:10]} 16. c5 {[%clk 0:01:41.4]} 16... d5 {[%clk 0:02:06.2]}
17. cxd6 {[%clk 0:01:40.3]} 17... exd6 {[%clk 0:02:07.1]} 18. Qf3 {[%clk
0:01:40.6]} 18... d5 {[%clk 0:02:04.8]} 19. Rac1 {[%clk 0:01:36.2]} 19... Bh6
{[%clk 0:01:56.4]} 20. Bf4 {[%clk 0:01:35.1]} 20... Bg4 {[%clk 0:01:52.1]} 21.
Qg3 {[%clk 0:01:35.4]} 21... Nh5 {[%clk 0:01:47]} 22. Qxg4 {[%clk 0:01:27.5]}
22... Nxf4 {[%clk 0:01:43.6]} 23. Rcd1 {[%clk 0:01:07.6]} 23... Qf6 {[%clk
0:01:41.2]} 24. g3 {[%clk 0:01:04.3]} 24... Nxd3 {[%clk 0:01:12.8]} 25. Rxd3
{[%clk 0:01:05.2]} 25... Kg7 {[%clk 0:01:13.6]} 26. h4 {[%clk 0:00:52.7]} 26...
Rab8 {[%clk 0:01:11.7]} 27. b4 {[%clk 0:00:51.4]} 27... a6 {[%clk 0:00:54.6]}
28. a3 {[%clk 0:00:51.4]} 28... Kg8 {[%clk 0:00:50]} 29. Kg2 {[%clk 0:00:50.6]}
29... Re7 {[%clk 0:00:32.9]} 30. h5 {[%clk 0:00:50.7]} 30... Qf5 {[%clk
0:00:17.5]} 31. Qxf5 {[%clk 0:00:45.5]} 31... gxf5 {[%clk 0:00:18.4]} 32. Na4
{[%clk 0:00:46.4]} 32... a5 {[%clk 0:00:16.7]} 33. bxa5 {[%clk 0:00:40.6]} 33...
Ra7 {[%clk 0:00:16.5]} 34. Nc5 {[%clk 0:00:39.2]} 34... Rxa5 {[%clk 0:00:14.5]}
35. Nd7 {[%clk 0:00:39.7]} 35... Rba8 {[%clk 0:00:11.6]} 36. Rc3 {[%clk
0:00:40.1]} 36... R5a6 {[%clk 0:00:05]} 37. Re1 {[%clk 0:00:37.8]} 37... Bg7
{[%clk 0:00:04.7]} 38. Rf3 {[%clk 0:00:38.3]} 38... Rxa3 {[%clk 0:00:02.5]} 39.
Rxf5 {[%clk 0:00:38.3]} 39... Ra1 {[%clk 0:00:01.9]} 40. Re7 {[%clk 0:00:37.2]}
40... h6 {[%clk 0:00:01.6]} 41. Nf6+ {[%clk 0:00:26.5]} 41... Bxf6 {[%clk
0:00:01.8]} 42. Rxf6 {[%clk 0:00:27.4]} 42... R1a7 {[%clk 0:00:02.4]} 43. Rg6+
{[%clk 0:00:24.1]} 43... Kf8 {[%clk 0:00:02.2]} 44. Rxa7 {[%clk 0:00:20]} 44...
Rxa7 {[%clk 0:00:03.1]} 45. Rxc6 {[%clk 0:00:20.2]} 45... Kg7 {[%clk 0:00:03.7]}
46. Rg6+ {[%clk 0:00:20.2]} 46... Kh7 {[%clk 0:00:03.7]} 47. Rd6 {[%clk
0:00:20.4]} 47... Ra5 {[%clk 0:00:04.5]} 48. Rd7+ {[%clk 0:00:21]} 48... Kg8
{[%clk 0:00:04.6]} 49. g4 {[%clk 0:00:21.9]} 49... Rb5 {[%clk 0:00:04.4]} 50.
Kg3 {[%clk 0:00:22.4]} 50... Rb3+ {[%clk 0:00:03.6]} 51. f3 {[%clk 0:00:23]}
51... Rd3 {[%clk 0:00:04.5]} 52. Kf4 {[%clk 0:00:23.7]} 52... d4 {[%clk
0:00:03.9]} 53. Kf5 {[%clk 0:00:14.3]} 53... Rxf3+ {[%clk 0:00:03.6]} 54. Kg6
{[%clk 0:00:15.2]} 1-0

[Event "Early-Titled-Tuesday-Blitz-February-27-2024"]
[Site "Chess.com"]
[Date "2024.02.27"]
[Round "5"]
[White "Russian_berezka"]
[Black "Cayse"]
[Result "0-1"]
[WhiteElo "2571"]
[BlackElo "2831"]
[TimeControl "180+1"]
[EndTime "8:54:52 PST"]
[Termination "Cayse won by resignation"]

1. d4 {[%clk 0:03:00.9]} 1... Nf6 {[%clk 0:03:00.2]} 2. c4 {[%clk 0:03:01.5]}
2... g6 {[%clk 0:03:00.7]} 3. Nc3 {[%clk 0:03:01.5]} 3... d5 {[%clk 0:02:59]} 4.
cxd5 {[%clk 0:03:00]} 4... Nxd5 {[%clk 0:02:57.2]} 5. e4 {[%clk 0:03:00.7]} 5...
Nxc3 {[%clk 0:02:57]} 6. bxc3 {[%clk 0:03:01.6]} 6... Bg7 {[%clk 0:02:57.4]} 7.
Qa4+ {[%clk 0:03:02.3]} 7... c6 {[%clk 0:02:54.7]} 8. Nf3 {[%clk 0:02:56.5]}
8... O-O {[%clk 0:02:54.5]} 9. Be2 {[%clk 0:02:57.2]} 9... e5 {[%clk 0:02:51.8]}
10. O-O {[%clk 0:02:45.9]} 10... exd4 {[%clk 0:02:51.4]} 11. cxd4 {[%clk
0:02:46.8]} 11... Re8 {[%clk 0:02:51.6]} 12. Qc2 {[%clk 0:02:46.8]} 12... Nd7
{[%clk 0:02:45.6]} 13. Bg5 {[%clk 0:02:40.3]} 13... Qa5 {[%clk 0:02:37.7]} 14.
Rad1 {[%clk 0:02:32.3]} 14... Nf6 {[%clk 0:02:37.3]} 15. Nd2 {[%clk 0:02:20.2]}
15... Qxg5 {[%clk 0:02:35.2]} 16. f4 {[%clk 0:02:15.7]} 16... Qa5 {[%clk
0:02:29]} 17. Nc4 {[%clk 0:02:14.9]} 17... Qc7 {[%clk 0:02:25.1]} 18. e5 {[%clk
0:02:15.2]} 18... Nd5 {[%clk 0:02:24.9]} 19. Nd6 {[%clk 0:02:15.8]} 19... Rd8
{[%clk 0:02:21.3]} 20. Qd2 {[%clk 0:02:11.2]} 20... Rxd6 {[%clk 0:02:20.4]} 21.
exd6 {[%clk 0:02:11.1]} 21... Qxd6 {[%clk 0:02:21.3]} 22. Bf3 {[%clk 0:02:05.1]}
22... Qxf4 {[%clk 0:02:09.1]} 23. Bxd5 {[%clk 0:02:00.1]} 23... Qxd2 {[%clk
0:01:50.5]} 24. Bxf7+ {[%clk 0:01:59]} 24... Kh8 {[%clk 0:01:48.2]} 25. Rxd2
{[%clk 0:01:57.4]} 25... Bf5 {[%clk 0:01:48.8]} 26. d5 {[%clk 0:01:56.7]} 26...
Rd8 {[%clk 0:01:47.6]} 27. d6 {[%clk 0:01:37.9]} 27... Bc3 {[%clk 0:01:29.8]}
28. Rdd1 {[%clk 0:01:28.1]} 28... Bg4 {[%clk 0:01:27.7]} 29. Rd3 {[%clk
0:01:18.7]} 29... Bb4 {[%clk 0:01:27.3]} 30. d7 {[%clk 0:01:08.2]} 30... Be2
{[%clk 0:01:21.1]} 31. Rfd1 {[%clk 0:00:39.4]} 31... Kg7 {[%clk 0:01:18.5]} 32.
Be8 {[%clk 0:00:38.2]} 32... Bc5+ {[%clk 0:01:15.2]} 33. Kh1 {[%clk 0:00:37.9]}
33... Kf6 {[%clk 0:01:05.1]} 34. R3d2 {[%clk 0:00:34.5]} 34... Bxd1 {[%clk
0:01:03.2]} 35. Rxd1 {[%clk 0:00:35.4]} 35... a5 {[%clk 0:00:57.4]} 36. a4
{[%clk 0:00:33.5]} 36... Ke7 {[%clk 0:00:54.3]} 37. g4 {[%clk 0:00:32.2]} 37...
Rb8 {[%clk 0:00:53.6]} 38. Kg2 {[%clk 0:00:26.9]} 38... Kd8 {[%clk 0:00:53.5]}
39. Rc1 {[%clk 0:00:21.5]} 39... Be7 {[%clk 0:00:50.7]} 40. Kf3 {[%clk
0:00:20.3]} 40... Kc7 {[%clk 0:00:50.8]} 41. Ke4 {[%clk 0:00:19.9]} 41... Bd8
{[%clk 0:00:50.3]} 42. Ke5 {[%clk 0:00:18.1]} 42... b5 {[%clk 0:00:49.8]} 43.
axb5 {[%clk 0:00:17.8]} 43... Rxb5+ {[%clk 0:00:50.7]} 44. Ke6 {[%clk
0:00:18.5]} 44... a4 {[%clk 0:00:45.8]} 45. Kf7 {[%clk 0:00:12.9]} 45... a3
{[%clk 0:00:44.4]} 46. Ra1 {[%clk 0:00:12.1]} 46... Ra5 {[%clk 0:00:44.3]} 47.
Ra2 {[%clk 0:00:12.5]} 47... c5 {[%clk 0:00:33.3]} 48. Kg7 {[%clk 0:00:10.9]}
48... g5 {[%clk 0:00:33.7]} 49. Kxh7 {[%clk 0:00:10.2]} 49... c4 {[%clk
0:00:27.9]} 50. Kg6 {[%clk 0:00:10]} 50... c3 {[%clk 0:00:25.5]} 51. Kf7 {[%clk
0:00:07]} 51... Kd6 {[%clk 0:00:24.3]} 52. Kg6 {[%clk 0:00:06.9]} 52... c2
{[%clk 0:00:23.9]} 53. Rxc2 {[%clk 0:00:03.8]} 53... a2 {[%clk 0:00:24.3]} 54.
Rd2+ {[%clk 0:00:04.7]} 54... Ke5 {[%clk 0:00:20.7]} 55. Re2+ {[%clk 0:00:04.1]}
55... Kf4 {[%clk 0:00:20]} 56. Bf7 {[%clk 0:00:04.9]} 56... a1=Q {[%clk
0:00:19.2]} 57. Re8 {[%clk 0:00:05.7]} 57... Qf6+ {[%clk 0:00:18.2]} 0-1

[Event "Early-Titled-Tuesday-Blitz-February-27-2024"]
[Site "Chess.com"]
[Date "2024.02.27"]
[Round "5"]
[White "abelmat"]
[Black "arnash_bauyrzhan"]
[Result "0-1"]
[WhiteElo "2069"]
[BlackElo "2298"]
[TimeControl "180+1"]
[EndTime "8:54:53 PST"]
[Termination "arnash_bauyrzhan won on time"]

1. d4 {[%clk 0:03:00.8]} 1... d5 {[%clk 0:02:59.4]} 2. c4 {[%clk 0:03:01]} 2...
e6 {[%clk 0:02:59.2]} 3. Nf3 {[%clk 0:03:01.5]} 3... Nf6 {[%clk 0:02:58.8]} 4.
Nc3 {[%clk 0:03:02]} 4... Be7 {[%clk 0:02:58.9]} 5. Bf4 {[%clk 0:03:02.1]} 5...
O-O {[%clk 0:02:58.8]} 6. e3 {[%clk 0:03:02.6]} 6... b6 {[%clk 0:02:58.8]} 7.
cxd5 {[%clk 0:03:00.7]} 7... Nxd5 {[%clk 0:02:58.3]} 8. Nxd5 {[%clk 0:02:59.2]}
8... exd5 {[%clk 0:02:58.1]} 9. a3 {[%clk 0:02:59]} 9... Be6 {[%clk 0:02:54.5]}
10. Bd3 {[%clk 0:02:57.3]} 10... c5 {[%clk 0:02:54.2]} 11. O-O {[%clk
0:02:56.8]} 11... Nd7 {[%clk 0:02:53.9]} 12. Ne5 {[%clk 0:02:53.8]} 12... Nxe5
{[%clk 0:02:48.4]} 13. Bxe5 {[%clk 0:02:54.7]} 13... Bd6 {[%clk 0:02:48]} 14. f4
{[%clk 0:02:37.3]} 14... Bxe5 {[%clk 0:02:44.7]} 15. fxe5 {[%clk 0:02:35.7]}
15... Qg5 {[%clk 0:02:43.7]} 16. Qf3 {[%clk 0:02:25.9]} 16... f6 {[%clk
0:02:21.1]} 17. Qf4 {[%clk 0:02:13.5]} 17... Qxf4 {[%clk 0:02:19.9]} 18. exf4
{[%clk 0:02:13.8]} 18... cxd4 {[%clk 0:02:19.5]} 19. Rfe1 {[%clk 0:02:06.8]}
19... fxe5 {[%clk 0:02:15.4]} 20. Rxe5 {[%clk 0:02:07.7]} 20... Rae8 {[%clk
0:02:03.7]} 21. Rae1 {[%clk 0:01:54.4]} 21... Bd7 {[%clk 0:02:03.5]} 22. g3
{[%clk 0:01:12.3]} 22... Bc6 {[%clk 0:01:49]} 23. Re7 {[%clk 0:01:05.2]} 23...
Rxe7 {[%clk 0:01:39.5]} 24. Rxe7 {[%clk 0:01:06.1]} 24... Rf7 {[%clk 0:01:30.2]}
25. Rxf7 {[%clk 0:00:56.7]} 25... Kxf7 {[%clk 0:01:30.2]} 26. Bxh7 {[%clk
0:00:41.9]} 26... Bb5 {[%clk 0:01:27.5]} 27. Bc2 {[%clk 0:00:38.1]} 27... d3
{[%clk 0:00:52]} 28. Bd1 {[%clk 0:00:36.5]} 28... d4 {[%clk 0:00:44.3]} 29. Kf2
{[%clk 0:00:33.8]} 29... d2 {[%clk 0:00:38.9]} 30. Be2 {[%clk 0:00:23.3]} 30...
Ba4 {[%clk 0:00:35.6]} 31. h4 {[%clk 0:00:08.2]} 31... d1=Q {[%clk 0:00:34.5]}
32. Bxd1 {[%clk 0:00:07]} 32... Bxd1 {[%clk 0:00:35.4]} 33. Ke1 {[%clk
0:00:07.8]} 33... Bg4 {[%clk 0:00:31.6]} 34. Kd2 {[%clk 0:00:08.7]} 34... Bf5
{[%clk 0:00:29.6]} 35. g4 {[%clk 0:00:07.4]} 35... Bxg4 {[%clk 0:00:26.7]} 36.
Kd3 {[%clk 0:00:07.9]} 36... Kf6 {[%clk 0:00:24.8]} 37. Kxd4 {[%clk 0:00:08.8]}
37... b5 {[%clk 0:00:21.6]} 38. b3 {[%clk 0:00:08.1]} 38... a5 {[%clk
0:00:16.4]} 39. b4 {[%clk 0:00:05.4]} 39... a4 {[%clk 0:00:16]} 40. Ke4 {[%clk
0:00:03.5]} 40... Be2 {[%clk 0:00:14.1]} 41. Ke3 {[%clk 0:00:03.3]} 41... Bc4
{[%clk 0:00:14.1]} 42. Ke4 {[%clk 0:00:03.4]} 42... Kg6 {[%clk 0:00:13]} 43. Ke5
{[%clk 0:00:03.4]} 43... Kh5 {[%clk 0:00:12.4]} 0-1

[Event "Early-Titled-Tuesday-Blitz-February-27-2024"]
[Site "Chess.com"]
[Date "2024.02.27"]
[Round "5"]
[White "Polish_fighter3000"]
[Black "Sina_Movahed"]
[Result "1-0"]
[WhiteElo "3086"]
[BlackElo "2933"]
[TimeControl "180+1"]
[EndTime "8:54:55 PST"]
[Termination "Polish_fighter3000 won by resignation"]

1. d4 {[%clk 0:03:00.9]} 1... Nf6 {[%clk 0:02:57.5]} 2. c4 {[%clk 0:03:00.9]}
2... g6 {[%clk 0:02:56.7]} 3. Nc3 {[%clk 0:03:00.6]} 3... Bg7 {[%clk 0:02:54.9]}
4. e4 {[%clk 0:03:00.2]} 4... O-O {[%clk 0:02:55.6]} 5. Nf3 {[%clk 0:02:59.9]}
5... d6 {[%clk 0:02:55.9]} 6. Be2 {[%clk 0:03:00.6]} 6... e5 {[%clk 0:02:56.5]}
7. O-O {[%clk 0:03:01.2]} 7... exd4 {[%clk 0:02:57.4]} 8. Nxd4 {[%clk
0:03:02.1]} 8... Re8 {[%clk 0:02:58.3]} 9. f3 {[%clk 0:03:00.6]} 9... c6 {[%clk
0:02:58.9]} 10. Nc2 {[%clk 0:02:57.3]} 10... Na6 {[%clk 0:02:58.3]} 11. Kh1
{[%clk 0:02:53]} 11... Be6 {[%clk 0:02:54.7]} 12. Bg5 {[%clk 0:02:35.2]} 12...
h6 {[%clk 0:02:46.5]} 13. Bh4 {[%clk 0:02:35.1]} 13... g5 {[%clk 0:02:44.9]} 14.
Bf2 {[%clk 0:02:32.5]} 14... d5 {[%clk 0:02:39]} 15. exd5 {[%clk 0:02:28.3]}
15... cxd5 {[%clk 0:02:39.9]} 16. c5 {[%clk 0:02:28.7]} 16... Rc8 {[%clk
0:02:29.2]} 17. c6 {[%clk 0:01:55.1]} 17... Nc7 {[%clk 0:02:28.6]} 18. cxb7
{[%clk 0:01:51.9]} 18... Rb8 {[%clk 0:02:28.8]} 19. Nd4 {[%clk 0:01:41.7]} 19...
Rxb7 {[%clk 0:02:26.6]} 20. Qd2 {[%clk 0:01:41.8]} 20... Nh5 {[%clk 0:02:19.6]}
21. g3 {[%clk 0:01:28.9]} 21... Bh3 {[%clk 0:02:17]} 22. Rfe1 {[%clk 0:01:28.1]}
22... Ne6 {[%clk 0:02:10]} 23. Bb5 {[%clk 0:01:17.8]} 23... Rf8 {[%clk
0:02:07.9]} 24. Rad1 {[%clk 0:01:04.9]} 24... Nf6 {[%clk 0:01:49.8]} 25. b4
{[%clk 0:00:45.9]} 25... Rc7 {[%clk 0:01:39.4]} 26. Nc6 {[%clk 0:00:30.3]} 26...
Qa8 {[%clk 0:01:16.4]} 27. Nxd5 {[%clk 0:00:27.3]} 27... Nxd5 {[%clk 0:01:15.6]}
28. Qxd5 {[%clk 0:00:28.2]} 28... Rfc8 {[%clk 0:01:07.4]} 29. Rc1 {[%clk
0:00:25.8]} 29... a6 {[%clk 0:00:56.2]} 30. Ba4 {[%clk 0:00:25.8]} 30... Kh8
{[%clk 0:00:49.1]} 31. Rc2 {[%clk 0:00:17.3]} 31... Qb7 {[%clk 0:00:43.5]} 32.
Rec1 {[%clk 0:00:15.7]} 32... Rd7 {[%clk 0:00:39.2]} 33. Qe4 {[%clk 0:00:15.8]}
33... Rd6 {[%clk 0:00:35.9]} 34. Bg1 {[%clk 0:00:05.5]} 34... Bf6 {[%clk
0:00:26.5]} 35. Bb3 {[%clk 0:00:05.5]} 35... Kg7 {[%clk 0:00:23.5]} 36. a4
{[%clk 0:00:05.7]} 36... Qd7 {[%clk 0:00:19.9]} 37. b5 {[%clk 0:00:05]} 37...
axb5 {[%clk 0:00:20.8]} 38. axb5 {[%clk 0:00:05.9]} 38... Rd1 {[%clk 0:00:20]}
39. Qe2 {[%clk 0:00:04.2]} 39... Rd3 {[%clk 0:00:18.1]} 40. Bc4 {[%clk
0:00:04.1]} 40... Rd6 {[%clk 0:00:17.3]} 41. Re1 {[%clk 0:00:03.7]} 41... Qb7
{[%clk 0:00:15.5]} 42. Qe4 {[%clk 0:00:03.7]} 42... Qd7 {[%clk 0:00:15.6]} 43.
Rce2 {[%clk 0:00:03.5]} 43... Rc7 {[%clk 0:00:14.6]} 44. Bb3 {[%clk 0:00:03.2]}
44... Qc8 {[%clk 0:00:14.6]} 45. Bc2 {[%clk 0:00:03.6]} 45... Kf8 {[%clk
0:00:14.3]} 46. Qh7 {[%clk 0:00:03.9]} 46... Bg7 {[%clk 0:00:14.8]} 47. Bf5
{[%clk 0:00:03.6]} 47... Bxf5 {[%clk 0:00:13.8]} 48. Qxf5 {[%clk 0:00:04.5]}
48... Qb7 {[%clk 0:00:14.4]} 49. Rxe6 {[%clk 0:00:04]} 1-0

[Event "Early-Titled-Tuesday-Blitz-February-27-2024"]
[Site "Chess.com"]
[Date "2024.02.27"]
[Round "5"]
[White "deribas12345"]
[Black "Mops_2004"]
[Result "0-1"]
[WhiteElo "2571"]
[BlackElo "2831"]
[TimeControl "180+1"]
[EndTime "8:54:59 PST"]
[Termination "Mops_2004 won on time"]

1. d4 {[%clk 0:03:00.9]} 1... g6 {[%clk 0:03:00.1]} 2. c4 {[%clk 0:03:00.7]}
2... Bg7 {[%clk 0:03:00.4]} 3. e4 {[%clk 0:03:01.4]} 3... d6 {[%clk 0:03:00.5]}
4. Nc3 {[%clk 0:03:01.4]} 4... e5 {[%clk 0:03:01.1]} 5. d5 {[%clk 0:03:00.9]}
5... a5 {[%clk 0:03:00.7]} 6. Nge2 {[%clk 0:03:00.6]} 6... Na6 {[%clk
0:02:59.5]} 7. Ng3 {[%clk 0:03:00.6]} 7... Qh4 {[%clk 0:02:55.6]} 8. Be2 {[%clk
0:02:54.8]} 8... Bd7 {[%clk 0:02:48.8]} 9. Be3 {[%clk 0:02:48.6]} 9... h5 {[%clk
0:02:47.1]} 10. Qd2 {[%clk 0:02:44.7]} 10... Bh6 {[%clk 0:02:47.4]} 11. O-O
{[%clk 0:02:21]} 11... Bf4 {[%clk 0:02:34.8]} 12. Bf3 {[%clk 0:02:06.2]} 12...
Nh6 {[%clk 0:02:27.8]} 13. Bxf4 {[%clk 0:01:53.9]} 13... Qxf4 {[%clk 0:02:07.4]}
14. Qxf4 {[%clk 0:01:52.4]} 14... exf4 {[%clk 0:02:07.8]} 15. Nge2 {[%clk
0:01:53.3]} 15... g5 {[%clk 0:02:05.4]} 16. Bxh5 {[%clk 0:01:44.3]} 16... Ng8
{[%clk 0:02:05]} 17. Bf3 {[%clk 0:01:33.5]} 17... g4 {[%clk 0:02:03.2]} 18. Bxg4
{[%clk 0:01:33.1]} 18... Bxg4 {[%clk 0:02:02.9]} 19. Nxf4 {[%clk 0:01:33.4]}
19... Nf6 {[%clk 0:02:01.6]} 20. f3 {[%clk 0:01:30.3]} 20... Bd7 {[%clk
0:01:51.2]} 21. g4 {[%clk 0:01:26.2]} 21... O-O-O {[%clk 0:01:36.4]} 22. Kg2
{[%clk 0:01:25.8]} 22... Rdg8 {[%clk 0:01:24.5]} 23. Rh1 {[%clk 0:01:12.1]}
23... Bxg4 {[%clk 0:00:58.9]} 24. fxg4 {[%clk 0:01:08.7]} 24... Rxg4+ {[%clk
0:00:54.9]} 25. Kf3 {[%clk 0:01:07.2]} 25... Rhh4 {[%clk 0:00:49.5]} 26. Nce2
{[%clk 0:01:04.5]} 26... Nc5 {[%clk 0:00:48.6]} 27. h3 {[%clk 0:00:45.5]} 27...
Rg5 {[%clk 0:00:31.5]} 28. Rag1 {[%clk 0:00:44.2]} 28... Re5 {[%clk 0:00:31.2]}
29. Rg7 {[%clk 0:00:41.5]} 29... Ncxe4 {[%clk 0:00:30.7]} 30. Rhg1 {[%clk
0:00:39.2]} 30... Nd2+ {[%clk 0:00:28.7]} 31. Kg3 {[%clk 0:00:31.9]} 31... Rh6
{[%clk 0:00:21.1]} 32. Rd1 {[%clk 0:00:08.2]} 32... Nfe4+ {[%clk 0:00:15.5]} 33.
Kg2 {[%clk 0:00:08.7]} 33... Rf6 {[%clk 0:00:12.6]} 34. b3 {[%clk 0:00:08]}
34... a4 {[%clk 0:00:12.2]} 35. Rg8+ {[%clk 0:00:06.2]} 35... Kd7 {[%clk
0:00:12.1]} 36. Rg7 {[%clk 0:00:07.1]} 36... axb3 {[%clk 0:00:11.6]} 37. axb3
{[%clk 0:00:08]} 37... Nxb3 {[%clk 0:00:12.1]} 38. Ne6 {[%clk 0:00:07.3]} 38...
Nec5 {[%clk 0:00:09.5]} 39. Ng3 {[%clk 0:00:06.3]} 39... Nxe6 {[%clk 0:00:07.9]}
40. dxe6+ {[%clk 0:00:07.2]} 40... Kxe6 {[%clk 0:00:07.9]} 41. h4 {[%clk
0:00:05.9]} 41... Nc5 {[%clk 0:00:06.5]} 42. h5 {[%clk 0:00:05.9]} 42... Ne4
{[%clk 0:00:05.5]} 43. Rh1 {[%clk 0:00:01.5]} 43... Rf2+ {[%clk 0:00:03.5]} 44.
Kh3 {[%clk 0:00:01.8]} 44... Rf3 {[%clk 0:00:04]} 45. Kg2 {[%clk 0:00:01.8]}
45... Rf2+ {[%clk 0:00:03]} 46. Kh3 {[%clk 0:00:02.1]} 46... Ng5+ {[%clk
0:00:03.5]} 47. Kg4 {[%clk 0:00:01.9]} 47... f6 {[%clk 0:00:03.9]} 48. h6 {[%clk
0:00:01.2]} 48... Rd2 {[%clk 0:00:03.9]} 49. Kh5 {[%clk 0:00:01.6]} 49... Rg2
{[%clk 0:00:03.7]} 0-1

[Event "Early-Titled-Tuesday-Blitz-February-27-2024"]
[Site "Chess.com"]
[Date "2024.02.27"]
[Round "5"]
[White "lluiss"]
[Black "maurovargas01"]
[Result "1-0"]
[WhiteElo "2171"]
[BlackElo "1870"]
[TimeControl "180+1"]
[EndTime "8:55:01 PST"]
[Termination "lluiss won on time"]

1. Nf3 {[%clk 0:02:51.7]} 1... Nc6 {[%clk 0:02:58.3]} 2. d4 {[%clk 0:02:49.9]}
2... d5 {[%clk 0:02:57.6]} 3. c4 {[%clk 0:02:46.1]} 3... e6 {[%clk 0:02:52.1]}
4. g3 {[%clk 0:02:45.4]} 4... f5 {[%clk 0:02:48.4]} 5. Bg5 {[%clk 0:02:24.5]}
5... Nf6 {[%clk 0:02:47]} 6. cxd5 {[%clk 0:02:07.9]} 6... exd5 {[%clk
0:02:45.2]} 7. Bg2 {[%clk 0:02:07.4]} 7... h6 {[%clk 0:02:44.5]} 8. Bxf6 {[%clk
0:02:03.2]} 8... Qxf6 {[%clk 0:02:43.7]} 9. O-O {[%clk 0:02:02.8]} 9... Bd6
{[%clk 0:02:34.9]} 10. Nc3 {[%clk 0:02:02.1]} 10... Be6 {[%clk 0:02:32.6]} 11.
Ne5 {[%clk 0:01:58]} 11... Nxe5 {[%clk 0:02:09.4]} 12. dxe5 {[%clk 0:01:57.2]}
12... Qxe5 {[%clk 0:02:08.4]} 13. Nxd5 {[%clk 0:01:49.2]} 13... O-O {[%clk
0:02:05]} 14. Nf4 {[%clk 0:01:45.5]} 14... Bc8 {[%clk 0:01:58.9]} 15. Qb3+
{[%clk 0:01:37.6]} 15... Kh7 {[%clk 0:01:54.8]} 16. h4 {[%clk 0:01:33.4]} 16...
g5 {[%clk 0:01:48.9]} 17. hxg5 {[%clk 0:01:27.3]} 17... hxg5 {[%clk 0:01:48.5]}
18. Nd3 {[%clk 0:01:27]} 18... Qd4 {[%clk 0:01:40]} 19. e3 {[%clk 0:01:13.2]}
19... Qg4 {[%clk 0:01:36.2]} 20. Rac1 {[%clk 0:01:01]} 20... Kg6 {[%clk
0:01:35.3]} 21. Rc4 {[%clk 0:01:00.4]} 21... f4 {[%clk 0:01:33.9]} 22. exf4
{[%clk 0:00:57.3]} 22... gxf4 {[%clk 0:01:26.1]} 23. Be4+ {[%clk 0:00:45.8]}
23... Bf5 {[%clk 0:01:08.3]} 24. Bxf5+ {[%clk 0:00:40.6]} 24... Rxf5 {[%clk
0:01:06.2]} 25. Qxb7 {[%clk 0:00:35.2]} 25... Rh8 {[%clk 0:01:00.2]} 26. Qg2
{[%clk 0:00:32.8]} 26... f3 {[%clk 0:00:56.9]} 27. Rxg4+ {[%clk 0:00:31.4]}
27... Kf6 {[%clk 0:00:54.9]} 28. Qh2 {[%clk 0:00:30.7]} 28... Rxh2 {[%clk
0:00:51.3]} 29. Kxh2 {[%clk 0:00:30.9]} 29... Rh5+ {[%clk 0:00:51.2]} 30. Kg1
{[%clk 0:00:31]} 30... Kf5 {[%clk 0:00:48.5]} 31. Rf4+ {[%clk 0:00:29.1]} 31...
Bxf4 {[%clk 0:00:47.3]} 32. Nxf4 {[%clk 0:00:30]} 32... Rh6 {[%clk 0:00:36.4]}
33. Rc1 {[%clk 0:00:29.9]} 33... Rh7 {[%clk 0:00:34.1]} 34. Rc5+ {[%clk
0:00:29.2]} 34... Kg4 {[%clk 0:00:32.7]} 35. Rc4 {[%clk 0:00:27.7]} 35... Rd7
{[%clk 0:00:29]} 36. Nd5+ {[%clk 0:00:21]} 36... Kh3 {[%clk 0:00:23.3]} 37. Ne3
{[%clk 0:00:21.2]} 37... Rh7 {[%clk 0:00:09.9]} 38. Rh4+ {[%clk 0:00:20.4]}
38... Rxh4 {[%clk 0:00:08.6]} 39. gxh4 {[%clk 0:00:21.3]} 39... Kxh4 {[%clk
0:00:09.2]} 40. Nf5+ {[%clk 0:00:21.3]} 40... Kg4 {[%clk 0:00:08.8]} 41. Ne7
{[%clk 0:00:22.2]} 41... Kf4 {[%clk 0:00:07.9]} 42. Nd5+ {[%clk 0:00:22.2]}
42... Ke4 {[%clk 0:00:08.2]} 43. Nxc7 {[%clk 0:00:23.1]} 43... Kd3 {[%clk
0:00:08.3]} 44. Kh2 {[%clk 0:00:20.7]} 44... Kc2 {[%clk 0:00:08.2]} 45. b4
{[%clk 0:00:18.7]} 45... Kb2 {[%clk 0:00:07.6]} 46. b5 {[%clk 0:00:18.6]} 46...
Kxa2 {[%clk 0:00:07.3]} 47. Nd5 {[%clk 0:00:16.1]} 47... Kb3 {[%clk 0:00:07]}
48. Kg3 {[%clk 0:00:14.4]} 48... Kc4 {[%clk 0:00:07]} 49. b6 {[%clk 0:00:14.6]}
49... axb6 {[%clk 0:00:04.6]} 50. Nxb6+ {[%clk 0:00:14.4]} 50... Kc5 {[%clk
0:00:04.6]} 51. Na4+ {[%clk 0:00:14.3]} 51... Kd4 {[%clk 0:00:04.4]} 52. Nb2
{[%clk 0:00:15.2]} 52... Ke4 {[%clk 0:00:03.1]} 53. Nd1 {[%clk 0:00:14.9]} 1-0